bitfinex/quotes_ETHUSD_20250219
["timestamp","ask_amount","ask_price","bid_price","bid_amount"]
[1739982679176,3.68297,2715.2,2714.4,0.8175]
[1739982679535,3.0,2715.1,2714.4,0.8175]
[1739982679663,6.0839077,2715.3,2714.5,0.450158]
[1739982679869,0.7239077,2715.3,2714.7,3.68353]
[1739982680087,3.9615,2715.6,2714.7,3.68353]
[1739982680088,3.68258,2715.5,2714.7,3.68353]
[1739982680403,3.0,2715.4,2714.7,3.68353]
[1739982680913,6.6827,2715.4,2714.6,3.68376]
[1739982681214,3.68292,2715.3,2714.5,4.45611]
[1739982681374,0.368292,2715.2,2714.6,3.68365]
[1739982681572,0.368292,2715.2,2714.5,4.45611]
[1739982681909,0.368292,2715.2,2714.5,4.45621]
[1739982682109,0.368292,2715.2,2714.6,3.68374]
[1739982682331,3.73520722,2715.5,2714.7,7.36719]
[1739982682619,3.73520722,2715.5,2714.7,3.72035506]
[1739982683018,7.41778722,2715.5,2714.7,7.36709]
[1739982683228,3.0,2715.5,2714.8,3.68351]
[1739982683733,3.68229,2715.7,2715.1,0.8328]
[1739982683888,5.7901266,2715.7,2715.1,0.8328]
[1739982684733,2.1078366,2715.7,2715.2,3.68293]
[1739982685032,9.0421,2715.9,2715.1,0.8328]
[1739982685198,3.68217,2715.8,2715.1,4.51583]
[1739982685404,3.6821,2715.9,2715.1,4.51583]
[1739982685604,3.6821,2715.9,2715.1,0.8328]
[1739982685841,3.68215,2715.8,2715.1,0.8328]
[1739982686130,0.736425,2715.7,2715.1,4.51589]
[1739982686504,0.736425,2715.7,2715.2,3.68295]
[1739982686714,3.6821,2715.9,2715.2,3.68295]
[1739982686897,3.68218,2715.8,2715.2,3.68295]
[1739982687104,3.68218,2715.8,2715.1,4.5159]
[1739982687305,3.6821,2715.9,2715.1,4.5159]
[1739982687505,3.6821,2715.9,2715.1,0.8328]
[1739982687703,4.12269336,2715.8,2715.1,0.8328]
[1739982687991,4.12269336,2715.8,2715.1,4.51581]
[1739982688215,0.44045336,2715.8,2715.2,3.68296]
[1739982688417,4.12270336,2715.8,2715.1,4.5158]
[1739982688620,0.78048034,2715.7,2715.1,4.5158]
[1739982688935,0.78048034,2715.7,2715.1,8.19882]
[1739982689091,0.78048034,2715.7,2715.1,4.5158]
[1739982689440,0.78048034,2715.7,2715.2,3.68288]
[1739982689730,0.78048034,2715.7,2715.1,4.51583]
[1739982690237,0.78048034,2715.7,2715.1,4.51582]
[1739982690596,0.78048034,2715.7,2715.1,8.19885]
[1739982691039,4.46279034,2715.7,2715.1,4.51582]
[1739982691404,4.46279034,2715.7,2715.1,8.19883]
[1739982691844,4.46279034,2715.7,2715.1,4.51581]
[1739982692149,0.44045336,2715.8,2715.2,3.68288]
[1739982692648,0.72243359,2716.0,2715.4,3.68262]
[1739982693006,12.04177,2716.1,2715.5,0.8303]
[1739982693637,8.36,2716.1,2715.5,0.8303]
[1739982693837,3.6819,2716.0,2715.5,0.8303]
[1739982694051,12.04184,2716.1,2715.5,0.8303]
[1739982694311,1.648436,2716.0,2715.5,4.51275]
[1739982694524,8.36,2716.1,2715.5,4.51275]
[1739982695116,9.08338855,2716.1,2715.5,4.51275]
[1739982695550,3.68191,2716.0,2715.5,0.8303]
[1739982696413,9.08338855,2716.1,2715.5,4.5128]
[1739982697125,12.04176,2716.1,2715.5,4.5128]
[1739982697358,1.280266,2716.0,2715.5,4.5128]
[1739982697518,8.36,2716.1,2715.6,3.68236]
[1739982697719,5.36,2716.1,2715.6,3.68236]
[1739982697920,3.68196,2716.0,2715.5,0.8303]
[1739982698249,0.88773356,2716.0,2715.5,4.51279]
[1739982698460,3.0,2716.3,2715.7,3.68221]
[1739982698662,3.0,2716.4,2715.7,3.68221]
[1739982698830,6.68143,2716.4,2715.7,3.68221]
[1739982699026,3.68163,2716.2,2715.5,4.51279]
[1739982699235,3.68177,2716.1,2715.5,0.8303]
[1739982699429,0.7753,2716.1,2715.3,5.37]
[1739982699635,3.68236,2715.7,2715.3,5.37]
[1739982699927,3.68236,2715.7,2715.2,0.7528]
[1739982700117,6.1353,2716.1,2715.2,0.7528]
[1739982700457,4.36965146,2716.0,2715.3,3.68282]
[1739982700612,3.68205,2715.9,2715.3,3.68282]
[1739982700814,4.36965146,2716.0,2715.3,3.68282]
[1739982701041,0.68770146,2716.0,2715.4,3.68263]
[1739982701249,0.68770146,2716.0,2715.5,3.68252]
[1739982701412,1.05048415,2715.9,2715.5,3.68252]
[1739982701615,0.68770146,2716.0,2715.2,0.7528]
[1739982701816,0.68770146,2716.0,2715.5,3.68249]
[1739982702013,4.36959146,2716.0,2715.4,3.68269]
[1739982702217,0.68770146,2716.0,2715.5,3.68244]
[1739982702527,4.36958146,2716.0,2715.4,3.68268]
[1739982702754,1.34113315,2715.9,2715.5,3.68246]
[1739982703364,5.36,2716.1,2715.7,3.68228]
[1739982703965,0.74171455,2716.2,2715.7,3.68228]
[1739982704122,4.40608626,2716.5,2715.9,3.68201]
[1739982704527,3.68134,2716.4,2715.9,3.68201]
[1739982704860,4.40604626,2716.5,2715.9,3.68201]
[1739982705530,0.815,2716.6,2715.9,3.718829]
[1739982705797,0.815,2716.6,2716.1,3.68169]
[1739982705798,1.800604,2716.6,2716.1,3.68169]
[1739982706494,1.800604,2716.6,2715.8,4.45469]
[1739982706664,1.800604,2716.6,2716.0,3.68187]
[1739982707455,0.74456625,2716.8,2716.0,3.68185]
[1739982707456,4.42542625,2716.8,2716.0,3.68185]
[1739982707657,3.68093,2716.7,2716.1,3.68165]
[1739982707872,0.74456625,2716.8,2716.2,3.68148]
[1739982708086,0.74456625,2716.8,2716.3,3.68147]
[1739982708255,3.681,2716.7,2716.1,0.8251]
[1739982708465,3.68122,2716.5,2716.1,0.8251]
[1739982708665,3.68122,2716.5,2715.7,5.37]
[1739982708666,0.7571,2716.5,2715.7,5.37]
[1739982708905,3.6819,2716.0,2715.7,5.37]
[1739982709068,3.68185,2716.1,2715.7,5.37]
[1739982709600,4.51089,2716.0,2715.7,5.37]
[1739982709799,0.829,2716.0,2715.5,4.47904]
[1739982710702,0.829,2716.2,2715.6,3.68229]
[1739982710876,1.280056,2716.2,2715.6,3.68229]
[1739982711070,4.961686,2716.2,2715.5,4.47904]
[1739982711258,3.68181,2716.1,2715.5,4.47904]
[1739982711455,3.68189,2716.0,2715.5,0.7965]
[1739982711701,4.42766023,2716.2,2715.2,0.7939]
[1739982712017,7.36499,2715.6,2714.9,4.4549]
[1739982712297,3.68249,2715.6,2714.9,4.4549]
[1739982712496,3.68257,2715.5,2714.9,4.4549]
[1739982712861,3.68257,2715.5,2714.9,8.1382]
[1739982713097,3.68257,2715.5,2714.9,4.4549]
[1739982713901,0.7751,2715.6,2714.9,4.4549]
[1739982714103,3.68258,2715.5,2714.9,4.4549]
[1739982714613,3.68279,2715.4,2714.9,0.7716]
[1739982714815,3.68291,2715.3,2714.9,0.7716]
[1739982714973,3.68297,2715.2,2714.8,5.37]
[1739982715178,3.68287,2715.3,2714.8,5.37]
[1739982715509,4.419436,2715.3,2714.8,5.37]
[1739982716014,0.736566,2715.3,2714.8,3.68351]
[1739982716216,3.68273,2715.4,2714.8,3.68351]
[1739982717378,3.68266,2715.5,2714.8,3.68338]
[1739982717623,3.68266,2715.5,2714.9,3.68335]
[1739982717819,3.68271,2715.4,2714.9,3.68335]
[1739982718122,3.68291,2715.3,2714.6,4.44517]
[1739982718294,7.36532,2715.5,2714.7,3.68354]
[1739982718479,0.8660695,2715.4,2714.7,3.68354]
[1739982718878,4.5488295,2715.4,2714.8,3.68346]
[1739982719108,3.6829,2715.3,2714.7,3.68354]
[1739982720226,4.5487795,2715.4,2714.8,3.6835]
[1739982720407,3.68283,2715.3,2714.7,3.68354]
[1739982720824,3.68303,2715.2,2714.6,4.44517]
[1739982721014,0.7667,2715.2,2714.4,6.1546]
[1739982721233,4.44975,2715.2,2714.5,3.6839]
[1739982721382,4.44975,2715.2,2714.4,6.1546]
[1739982721383,0.7667,2715.2,2714.4,6.1546]
[1739982721583,0.39143042,2715.1,2714.1,4.46897]
[1739982721895,0.7667,2714.7,2714.1,4.46897]
[1739982722314,0.7667,2714.7,2714.3,3.68418]
[1739982723225,0.7667,2714.7,2714.1,8.15331]
[1739982723423,0.7667,2714.7,2714.2,3.68426]
[1739982723802,0.7667,2714.7,2714.1,4.46894]
[1739982723803,0.7667,2714.7,2714.3,3.68411]
[1739982724188,1.211714,2714.7,2714.3,7.36822]
[1739982724527,4.895374,2714.7,2714.2,3.68431]
[1739982724767,1.211714,2714.7,2714.2,3.68426]
[1739982725937,1.211714,2714.7,2714.3,3.68418]
[1739982726173,1.211714,2714.7,2714.1,4.46896]
[1739982726328,1.211714,2714.7,2714.2,3.68425]
[1739982726529,1.211714,2714.7,2714.3,3.68415]
[1739982727032,1.211714,2714.7,2714.1,4.46896]
[1739982727033,4.895374,2714.7,2714.1,4.46896]
[1739982727371,0.4895374,2714.6,2714.1,8.15333]
[1739982727570,0.4895374,2714.6,2714.1,4.46894]
[1739982727745,1.211714,2714.7,2714.2,3.6842]
[1739982728353,1.211714,2714.7,2714.3,3.68412]
[1739982728974,0.7667,2714.7,2714.3,3.68412]
[1739982730652,4.45041,2714.7,2714.1,4.46897]
[1739982730854,3.68379,2714.6,2714.0,3.68452]
[1739982731171,0.7667,2714.7,2714.2,3.68426]
[1739982731738,4.45036,2714.7,2714.2,3.68426]
[1739982731944,0.7667,2714.7,2714.3,3.68418]
[1739982732240,1.211728,2714.7,2714.3,3.68418]
[1739982732440,4.895388,2714.7,2714.1,3.68446]
[1739982732834,1.211728,2714.7,2714.3,3.68417]
[1739982733575,4.895378,2714.7,2714.1,3.68446]
[1739982733776,4.895378,2714.7,2714.1,3.68437]
[1739982733970,4.895378,2714.7,2714.1,7.36874]
[1739982734140,4.895378,2714.7,2714.1,3.68437]
[1739982734540,4.895378,2714.7,2714.2,3.68431]
[1739982734757,1.211728,2714.7,2714.3,3.68417]
[1739982734951,1.211728,2714.7,2714.1,3.68437]
[1739982735252,4.45036,2714.7,2714.2,3.68424]
[1739982735879,0.7667,2714.7,2714.3,3.68416]
[1739982736675,3.68337,2714.9,2714.3,4.45496]
[1739982737262,3.68361,2714.8,2714.1,4.45525]
[1739982737773,3.68361,2714.8,2714.3,3.68417]
[1739982737978,0.7737,2715.0,2714.2,3.68432]
[1739982738278,0.27331396,2715.2,2714.2,3.68432]
[1739982738279,0.77,2715.2,2714.8,3.68349]
[1739982738584,4.4525,2715.6,2715.0,3.68323]
[1739982738894,4.4525,2715.6,2714.8,0.7592]
[1739982738895,3.6828,2715.4,2714.8,0.7592]
[1739982739051,0.44525,2715.5,2714.5,9.84987]
[1739982739052,3.68317,2715.1,2714.5,9.84987]
[1739982739248,3.68333,2715.0,2714.5,6.166]
[1739982739477,3.68314,2715.1,2714.5,5.37]
[1739982739643,4.49057,2714.8,2714.5,5.37]
[1739982739843,0.807,2714.8,2714.5,5.37]
[1739982740753,4.49057,2714.8,2714.5,5.37]
[1739982740970,0.807,2714.8,2714.5,5.37]
[1739982742046,4.51374,2715.0,2714.5,5.37]
[1739982742246,5.333435,2715.0,2714.5,5.37]
[1739982742582,5.333435,2715.0,2714.4,3.68405]
[1739982743086,0.74692686,2714.9,2714.4,3.68405]
[1739982743957,0.8305,2715.0,2714.4,3.68405]
[1739982744297,9.04307,2715.2,2713.9,6.83231423]
[1739982744298,5.36,2715.2,2714.8,4.44464]
[1739982744459,0.8188,2715.3,2714.8,0.7612]
[1739982744664,0.44525,2715.5,2714.9,3.68331]
[1739982745059,0.44525,2715.5,2715.0,3.68323]
[1739982745263,0.44525,2715.5,2714.9,3.68325]
[1739982745488,0.495764,2715.4,2714.8,0.7612]
[1739982745664,0.495764,2715.4,2714.9,3.68336]
[1739982746048,0.495764,2715.4,2714.9,7.36672]
[1739982746244,0.7530346,2715.5,2715.0,3.68321]
[1739982746975,0.8248,2715.8,2715.1,4.44121]
[1739982747177,4.50702,2715.8,2715.1,4.44121]
[1739982747448,3.68272,2715.4,2714.9,6.1282]
[1739982747762,4.50763,2715.3,2714.9,5.37]
[1739982747960,0.7984,2715.7,2714.9,5.37]
[1739982748189,0.7984,2715.4,2714.9,5.37]
[1739982748493,3.68331,2715.0,2714.5,0.279]
[1739982748694,3.68308,2715.2,2714.4,0.7896]
[1739982748866,3.68296,2715.2,2714.5,3.68382]
[1739982749187,3.68293,2715.3,2714.5,3.68382]
[1739982749188,3.68293,2715.3,2714.7,3.68362]
[1739982749393,0.7984,2715.4,2714.7,3.68362]
[1739982749394,0.7984,2715.4,2714.9,4.47167]
[1739982749554,3.68262,2715.5,2714.9,8.15497]
[1739982749751,4.81467,2715.6,2714.9,4.4716]
[1739982750099,4.81467,2715.6,2715.0,3.68318]
[1739982750247,0.7524,2715.6,2714.9,4.4716]
[1739982750590,9.04237,2715.7,2715.1,3.68309]
[1739982750892,9.04237,2715.7,2715.1,7.36612]
[1739982750893,3.68229,2715.7,2715.1,7.36612]
[1739982751092,3.68229,2715.7,2715.2,0.8038]
[1739982751252,3.68207,2715.9,2715.2,0.8038]
[1739982751588,3.68217,2715.8,2715.3,3.68282]
[1739982751794,3.68243,2715.6,2715.2,0.8038]
[1739982752163,7.36475,2715.7,2715.2,0.8038]
[1739982752368,7.36474,2715.7,2715.2,0.8038]
[1739982752577,3.68245,2715.6,2715.2,0.8038]
[1739982752891,3.68235,2715.7,2715.2,0.8038]
[1739982753354,7.36473,2715.7,2715.2,0.8038]
[1739982753559,3.68242,2715.6,2715.0,3.68314]
[1739982753782,3.68242,2715.6,2714.7,5.74204551]
[1739982753783,3.68285,2715.3,2714.8,0.7549]
[1739982754092,3.683,2715.2,2714.8,0.7549]
[1739982754297,0.7735,2715.5,2714.7,5.74204551]
[1739982754298,3.7735,2715.5,2714.7,5.37]
[1739982754462,7.3664,2715.1,2714.6,0.7549]
[1739982754796,3.68326,2715.0,2714.6,0.7549]
[1739982754954,4.43706,2715.0,2714.6,0.7549]
[1739982755151,0.7538,2715.0,2714.6,0.7549]
[1739982755498,3.68344,2714.9,2714.3,4.45137]
[1739982755698,0.812043,2714.9,2714.3,0.7672]
[1739982755900,0.812043,2714.9,2714.4,3.68404]
[1739982756201,0.812043,2714.9,2714.3,4.45135]
[1739982756393,4.495493,2714.9,2714.3,4.45135]
[1739982756910,4.495493,2714.9,2714.3,0.7672]
[1739982756911,3.68352,2714.8,2714.3,0.7672]
[1739982757111,3.68379,2714.6,2714.1,0.7822]
[1739982757409,3.68379,2714.6,2713.9,9.05466]
[1739982757410,3.68399,2714.5,2713.9,5.37]
[1739982757618,3.68379,2714.6,2713.9,9.05462]
[1739982757899,3.68379,2714.6,2714.0,3.68459]
[1739982758510,3.68411,2714.4,2713.8,4.46698]
[1739982758678,3.68434,2714.2,2713.7,5.37]
[1739982758885,3.6843,2714.3,2713.7,5.37]
[1739982759281,7.36857,2714.3,2713.7,5.37]
[1739982759479,3.68427,2714.3,2713.7,9.05493]
[1739982759716,3.68427,2714.3,2713.7,5.37]
[1739982760209,3.68427,2714.3,2713.7,9.05498]
[1739982761319,7.36858,2714.3,2713.7,9.05498]
[1739982761614,3.68434,2714.2,2713.7,5.37]
[1739982761797,7.36858,2714.3,2713.7,9.05498]
[1739982762162,3.68434,2714.2,2713.7,5.37]
[1739982762877,0.89366505,2714.3,2713.8,3.68485]
[1739982763093,0.73857052,2714.4,2713.7,9.055]
[1739982763315,3.68427,2714.3,2713.7,3.685]
[1739982763513,0.73857052,2714.4,2713.7,3.685]
[1739982763675,4.42262052,2714.4,2713.7,3.685]
[1739982764319,4.42262052,2714.4,2713.8,3.68477]
[1739982764727,3.68428,2714.3,2713.6,3.68504]
[1739982765017,3.68428,2714.3,2713.7,3.68499]
[1739982765576,3.68428,2714.3,2713.7,7.3699]
[1739982765777,4.42262052,2714.4,2713.6,1.354531]
[1739982765778,0.73857052,2714.4,2713.6,1.354531]
[1739982765993,3.68419,2714.3,2713.7,3.68488]
[1739982766453,3.68419,2714.3,2713.6,3.68503]
[1739982766731,3.6844,2714.2,2713.6,3.68503]
[1739982767330,3.68419,2714.3,2713.7,3.68494]
[1739982767833,0.73857052,2714.4,2713.8,3.68486]
[1739982768019,4.42267052,2714.4,2713.8,3.68486]
[1739982768226,3.68457,2714.1,2713.5,4.49027]
[1739982768426,4.49504,2714.2,2713.6,3.68507]
[1739982768741,4.49504,2714.2,2713.6,7.37014]
[1739982769439,0.8107,2714.2,2713.7,3.68489]
[1739982769800,3.68554,2713.3,2713.2,0.7635]
[1739982769999,3.68532,2713.5,2713.0,0.7635]
[1739982770247,3.68548,2713.4,2713.0,0.7635]
[1739982771041,0.7772,2713.9,2713.0,0.7635]
[1739982771244,3.68522,2713.6,2713.0,1.52321042]
[1739982771403,1.15492,2713.9,2713.0,0.7635]
[1739982771607,3.6854,2713.5,2713.0,0.7635]
[1739982772024,7.37075,2713.5,2713.0,0.7635]
[1739982772347,3.68535,2713.5,2713.0,0.7635]
[1739982772552,3.6851,2713.7,2713.0,4.44937]
[1739982772711,3.68518,2713.6,2713.0,8.580187]
[1739982773056,3.685,2713.7,2713.0,8.580187]
[1739982773436,3.68517,2713.6,2713.0,8.580187]
[1739982773642,3.68517,2713.6,2713.0,4.894307]
[1739982773837,3.68497,2713.8,2713.0,4.894307]
[1739982774155,4.06248,2713.9,2713.2,4.47347]
[1739982774517,3.68476,2713.9,2713.2,4.47347]
[1739982774711,3.68459,2714.0,2713.4,0.7879]
[1739982774937,3.68478,2713.9,2713.4,0.7879]
[1739982775344,3.68459,2714.0,2713.4,0.7879]
[1739982775518,3.68488,2713.8,2713.4,0.7879]
[1739982775919,3.68514,2713.6,2713.4,0.7879]
[1739982776134,3.68495,2713.8,2713.4,0.7879]
[1739982776613,3.68511,2713.7,2713.4,0.7879]
[1739982777148,3.68495,2713.8,2713.4,0.7879]
[1739982777316,3.685,2713.7,2713.4,0.7879]
[1739982777655,3.68483,2713.9,2713.4,0.7879]
[1739982777845,3.685,2713.8,2713.4,0.7879]
[1739982778420,4.42659362,2714.1,2713.4,0.7879]
[1739982778615,0.74202362,2714.1,2713.4,0.82475001]
[1739982778832,3.68487,2713.8,2713.4,2.140809]
[1739982779157,3.6848,2713.9,2713.4,0.7879]
[1739982779366,4.42658362,2714.1,2713.4,0.7879]
[1739982779367,3.68487,2713.8,2713.4,0.7879]
[1739982780462,3.68487,2713.8,2713.2,5.37]
[1739982780463,0.7979,2714.0,2713.2,0.7679]
[1739982780634,3.68524,2713.6,2713.2,0.7679]
[1739982781059,3.68489,2713.8,2713.2,0.804753]
[1739982781258,3.68489,2713.8,2713.2,1.2538073]
[1739982781457,3.6848,2713.9,2713.2,4.9025543]
[1739982781760,3.68461,2714.0,2713.5,0.8096]
[1739982781964,3.68481,2713.9,2713.5,0.8096]
[1739982782164,3.68487,2713.8,2713.5,0.8096]
[1739982782551,3.68508,2713.7,2713.5,0.8096]
[1739982782748,3.68487,2713.8,2713.5,0.8096]
[1739982783202,3.68469,2714.0,2713.5,0.8096]
[1739982783491,3.68501,2713.7,2713.5,0.449509]
[1739982783696,3.68483,2713.9,2713.3,0.8096]
[1739982783855,3.68496,2713.8,2713.3,0.8096]
[1739982784058,0.74202362,2714.1,2713.4,0.84644871]
[1739982784257,0.74202362,2714.1,2713.5,0.8096]
[1739982784493,3.68434,2714.2,2713.7,0.7974]
[1739982785401,3.68407,2714.4,2713.7,0.7974]
[1739982786113,1.57672672,2714.6,2713.7,0.7974]
[1739982786114,1.57672672,2714.6,2713.7,4.4824]
[1739982786509,3.68387,2714.6,2713.8,3.68483]
[1739982786794,3.68392,2714.5,2713.9,0.8328]
[1739982787004,3.68392,2714.5,2713.9,1.32508953]
[1739982787356,7.36795,2714.5,2713.9,1.32508953]
[1739982787558,3.68406,2714.4,2713.9,1.28824723]
[1739982787754,3.95840423,2714.4,2713.6,0.03684231]
[1739982788000,3.68468,2714.0,2713.3,0.7683]
[1739982788203,7.3694,2714.0,2713.3,0.7683]
[1739982788368,3.68468,2714.0,2713.3,4.45374]
[1739982788699,3.68467,2714.0,2713.3,0.7683]
[1739982789090,7.36939,2714.0,2713.3,0.7683]
[1739982789262,3.68467,2714.0,2713.3,5.83614543]
[1739982789463,3.68441,2714.2,2713.4,3.6854]
[1739982789685,0.7531,2714.6,2713.6,0.8306]
[1739982789902,3.68413,2714.4,2713.7,3.68497]
[1739982790206,3.68413,2714.4,2713.8,0.7609]
[1739982790403,3.68432,2714.3,2713.8,0.7609]
[1739982790761,3.68435,2714.2,2713.8,0.7609]
[1739982792113,3.6842,2714.3,2713.8,0.7609]
[1739982793975,3.68417,2714.4,2713.8,0.7609]
[1739982794170,1.50405706,2714.6,2713.8,4.44575]
[1739982794171,3.68392,2714.5,2713.8,4.44575]
[1739982794372,3.68379,2714.6,2714.0,0.7528]
[1739982794788,3.684,2714.5,2714.0,0.7528]
[1739982794987,3.68411,2714.4,2714.0,0.7528]
[1739982795364,3.68423,2714.3,2714.0,0.7528]
[1739982795767,0.7953,2714.5,2714.0,0.7528]
[1739982796277,3.68386,2714.6,2714.0,1.73725028]
[1739982796875,3.68423,2714.3,2713.8,6.151]
[1739982797204,0.7752,2714.5,2713.8,6.151]
[1739982797205,4.45915,2714.5,2713.8,6.151]
[1739982797408,3.68405,2714.4,2713.8,6.151]
[1739982798014,3.68433,2714.2,2713.8,6.151]
[1739982798383,3.68416,2714.4,2713.8,6.151]
[1739982798712,3.68421,2714.3,2713.8,6.151]
[1739982799499,3.68419,2714.3,2713.8,6.151]
[1739982800126,3.68406,2714.4,2713.8,6.151]
[1739982800322,3.68419,2714.3,2713.8,7.503089]
[1739982800484,3.68419,2714.3,2713.8,6.151]
[1739982803089,3.6842,2714.3,2713.8,6.151]
[1739982803291,3.68395,2714.5,2713.9,0.7682]
[1739982803635,3.68388,2714.6,2714.0,0.7682]
[1739982803787,3.68387,2714.6,2714.1,0.03684007]
[1739982803986,3.68387,2714.6,2714.0,0.7682]
[1739982804235,3.68387,2714.6,2714.0,1.754168]
[1739982804418,3.68387,2714.6,2714.0,5.438698]
[1739982804928,7.36777,2714.6,2714.0,1.7520781]
[1739982805294,3.68395,2714.5,2714.0,1.7520781]
[1739982805491,3.68408,2714.4,2714.0,1.7520781]
[1739982805691,3.68408,2714.4,2714.0,0.7661101]
[1739982805887,3.68425,2714.3,2714.0,0.7661101]
[1739982806108,3.68442,2714.2,2713.8,5.37]
[1739982806303,3.68405,2714.4,2713.8,5.37]
[1739982806510,3.68426,2714.3,2713.8,5.37]
[1739982806835,3.68435,2714.2,2713.8,5.37]
[1739982807408,3.68448,2714.1,2713.8,5.37]
[1739982807844,3.68448,2714.1,2713.7,0.7597]
[1739982808054,4.496411,2714.3,2713.7,0.7597]
[1739982808267,3.68407,2714.4,2713.8,0.03684671]
[1739982808549,3.6842,2714.3,2713.7,4.44464]
[1739982808854,3.68399,2714.5,2713.8,3.68486]
[1739982809079,3.68389,2714.6,2713.8,3.68486]
[1739982809350,6.1463,2714.7,2714.1,0.7738]
[1739982809351,9.04373,2714.7,2714.1,0.7738]
[1739982809747,5.36,2714.7,2714.2,0.036841]
[1739982810062,0.27281029,2715.1,2714.1,3.68442]
[1739982810063,3.6832,2715.1,2714.4,0.7973]
[1739982810221,3.0,2715.1,2714.5,3.68388]
[1739982810553,6.68318,2715.1,2714.4,4.48125]
[1739982810725,3.68333,2715.0,2714.4,0.7973]
[1739982810922,3.6833,2715.0,2714.4,0.7973]
[1739982811137,3.68344,2714.9,2714.4,0.7973]
[1739982811960,3.6836,2714.8,2714.4,0.7973]
[1739982812312,3.68385,2714.6,2714.2,0.7608]
[1739982812508,4.420594,2714.6,2714.2,0.7608]
[1739982812741,3.68385,2714.6,2714.2,0.7608]
[1739982813216,3.68333,2715.0,2714.3,3.68417]
[1739982813444,3.0,2715.1,2714.4,4.48155501]
[1739982813616,6.68314,2715.1,2714.5,0.7608]
[1739982813829,3.68324,2715.0,2714.5,0.7608]
[1739982814344,3.0,2715.1,2714.5,4.44468]
[1739982814345,6.68312,2715.1,2714.5,4.44468]
[1739982814719,3.0,2715.2,2714.5,4.44468]
[1739982814919,3.68277,2715.4,2714.7,0.8088]
[1739982815143,3.68298,2715.2,2714.7,0.8088]
[1739982815345,3.68277,2715.4,2714.7,0.8088]
[1739982815557,3.68292,2715.3,2714.7,0.8088]
[1739982815862,9.2253729,2715.7,2715.0,3.68322]
[1739982815863,6.1766,2715.7,2715.0,3.68322]
[1739982816061,3.68232,2715.7,2715.1,0.03682798]
[1739982816214,3.68232,2715.7,2715.0,4.13610514]
[1739982816215,3.68237,2715.7,2715.0,3.68322]
[1739982816611,3.68244,2715.6,2715.0,3.68322]
[1739982817137,3.68244,2715.6,2715.1,0.8302]
[1739982818955,3.68263,2715.5,2715.1,0.8302]
[1739982819172,3.68292,2715.3,2714.9,5.37]
[1739982819376,3.6829,2715.3,2714.9,5.37]
[1739982819792,3.6829,2715.3,2714.8,0.7604]
[1739982820280,0.7747,2715.5,2714.8,0.7604]
[1739982820579,3.68256,2715.5,2714.8,8.12723]
[1739982820780,3.68232,2715.7,2714.9,0.03683056]
[1739982820958,3.68249,2715.6,2715.0,3.68317]
[1739982821851,3.68249,2715.6,2715.0,7.36632]
[1739982822055,7.365,2715.6,2715.0,3.68315]
[1739982822250,3.68249,2715.6,2715.0,7.36632]
[1739982822452,3.68249,2715.6,2715.1,0.7642]
[1739982822670,0.368249,2715.5,2715.1,0.7642]
[1739982822869,4.050829,2715.5,2715.1,0.7642]
[1739982823142,3.68297,2715.2,2714.7,0.7642]
[1739982824044,3.68304,2715.2,2714.7,0.7642]
[1739982824989,7.36611,2715.2,2714.7,0.7642]
[1739982825140,4.419651,2715.2,2714.7,0.7642]
[1739982825340,8.102711,2715.2,2714.7,0.7642]
[1739982825584,3.68319,2715.1,2714.7,0.7642]
[1739982826321,4.419651,2715.2,2714.7,0.7642]
[1739982826457,8.102691,2715.2,2714.7,0.7642]
[1739982826793,4.4934991,2715.1,2714.7,0.7642]
[1739982827852,3.68328,2715.0,2714.7,0.7642]
[1739982828195,4.4416,2715.1,2714.5,9.0539]
[1739982828355,3.68308,2715.2,2714.6,3.68371]
[1739982828699,3.68292,2715.3,2714.7,4.49142]
[1739982828883,4.5321499,2715.3,2714.7,4.49142]
[1739982829255,3.68314,2715.1,2714.7,0.8078]
[1739982829457,3.68297,2715.2,2714.7,0.8078]
[1739982829771,3.68297,2715.2,2714.7,4.49143]
[1739982830559,1.126649,2715.5,2714.8,3.68344]
[1739982830759,0.8131,2715.8,2715.1,0.83]
[1739982830954,9.04238,2715.7,2715.1,0.83]
[1739982831257,3.68257,2715.5,2715.1,0.83]
[1739982833704,3.68269,2715.4,2715.1,0.83]
[1739982833873,3.68257,2715.5,2715.1,0.83]
[1739982834402,3.68273,2715.4,2715.1,0.83]
[1739982834562,3.68283,2715.3,2715.1,0.83]
[1739982834766,3.68256,2715.5,2715.1,0.83]
[1739982834965,3.68286,2715.3,2715.1,0.83]
[1739982835179,4.051026,2715.4,2715.1,0.83]
[1739982837207,0.8308,2715.3,2714.9,5.37]
[1739982837389,3.68289,2715.3,2714.9,5.37]
[1739982837708,3.68289,2715.3,2714.8,3.68343]
[1739982838069,3.68341,2714.9,2714.6,5.37]
[1739982838304,3.68376,2714.7,2714.3,0.8059]
[1739982838502,0.8,2714.8,2714.0,6.1759]
[1739982838668,3.68405,2714.4,2714.0,6.1759]
[1739982838864,3.68405,2714.4,2714.0,0.8059]
[1739982839110,4.420841,2714.4,2714.0,0.8059]
[1739982839312,3.68386,2714.6,2714.0,0.8059]
[1739982839501,3.68392,2714.5,2714.0,0.8059]
[1739982839821,4.48359,2714.8,2714.1,3.68444]
[1739982840111,3.68364,2714.7,2714.1,3.68444]
[1739982840299,3.68359,2714.8,2714.0,0.8059]